bitfinex-derivatives/quotes_BNBF0:USTF0_20251225
["timestamp","ask_amount","ask_price","bid_price","bid_amount"]
[1766687664925,0.89130662,842.21,841.37,1.19011419]
[1766687665125,2.07971937,842.2,841.37,1.19011419]
[1766687665324,0.89130662,842.17,841.33,1.19011419]
[1766687665520,0.89130662,842.17,840.57,2.95491084]
[1766687665521,1.18841275,842.16,841.3,1.19011419]
[1766687665728,1.18841275,842.15,841.3,1.19011419]
[1766687665925,1.18841275,842.14,841.3,1.19011419]
[1766687666124,1.18841275,842.13,841.3,1.19011419]
[1766687666324,1.18841275,842.12,841.29,1.19011419]
[1766687666521,1.18841275,842.11,841.29,1.19011419]
[1766687666825,1.18841275,842.1,841.29,1.19011419]
[1766687667024,1.18841275,842.09,841.29,1.19011419]
[1766687667224,1.18841275,842.08,841.29,1.19011419]
[1766687667521,1.18841275,842.07,841.28,1.19011419]
[1766687667726,1.18841275,842.06,841.24,1.19011419]
[1766687668025,1.18841275,842.05,841.24,1.19011419]
[1766687668225,1.18841275,842.04,841.24,1.19011419]
[1766687668425,1.18841275,842.03,841.22,1.19011419]
[1766687668622,0.89130662,842.18,841.22,1.19011419]
[1766687668822,1.18868634,842.17,841.22,1.19011419]
[1766687669025,1.18868634,842.16,841.22,1.19011419]
[1766687669224,0.89130662,842.18,841.22,1.19011419]
[1766687669225,1.18868634,842.15,841.22,1.19011419]
[1766687669426,1.18868634,842.14,841.22,1.19011419]
[1766687669622,1.18868634,842.13,841.22,1.19011419]
[1766687669825,1.18868634,842.12,841.22,1.19011419]
[1766687670023,1.18868634,842.11,841.22,1.19011419]
[1766687670222,1.18868634,842.1,841.22,1.19011419]
[1766687670426,1.18868634,842.09,841.22,1.19011419]
[1766687670722,1.18868634,842.08,841.21,1.19011419]
[1766687670923,1.18868634,842.07,841.21,1.19011419]
[1766687671126,1.18868634,842.06,841.21,1.19011419]
[1766687671324,1.18868634,842.05,841.2,1.19011419]
[1766687671523,0.89130662,842.2,841.2,1.19011419]
[1766687671726,1.18868614,842.19,841.2,1.19011419]
[1766687671924,1.18868614,842.18,841.2,1.19011419]
[1766687672228,1.18868614,842.17,841.2,1.19011419]
[1766687672428,1.18868614,842.16,841.2,1.19011419]
[1766687672627,1.18868614,842.15,841.2,1.19011419]
[1766687672826,1.18868614,842.14,841.2,1.19011419]
[1766687673024,1.18868614,842.13,841.2,1.19011419]
[1766687673229,1.18868614,842.12,841.2,1.19011419]
[1766687673429,1.18868614,842.11,841.19,1.19011419]
[1766687673630,1.18868614,842.1,841.19,1.19011419]
[1766687673926,1.18868614,842.09,841.19,1.19011419]
[1766687674130,1.18868614,842.08,841.19,1.19011419]
[1766687674323,1.18868614,842.07,841.19,1.19011419]
[1766687674531,0.89130662,842.22,841.19,1.19011419]
[1766687674728,1.18868665,842.21,841.19,1.19011419]
[1766687674928,1.18868665,842.2,841.19,1.19011419]
[1766687675131,1.18868665,842.19,841.19,1.19011419]
[1766687675332,1.18868665,842.18,841.18,1.19011419]
[1766687675533,1.18868665,842.17,841.18,1.19011419]
[1766687675727,1.18868665,842.16,841.18,1.19011419]
[1766687675928,1.18868665,842.15,841.18,1.19011419]
[1766687676127,1.18868665,842.14,841.18,1.19011419]
[1766687676328,1.18868665,842.13,841.18,1.19011419]
[1766687676527,1.18868665,842.12,841.18,1.19011419]
[1766687676829,1.18868665,842.11,841.18,1.19011419]
[1766687677033,1.18868665,842.1,841.18,1.19011419]
[1766687677229,1.18868665,842.09,841.18,1.19011419]
[1766687677435,1.18868665,842.08,841.18,1.19011419]
[1766687677635,0.89130662,842.23,841.18,1.19011419]
[1766687677931,1.18868686,842.22,841.18,1.19011419]
[1766687678134,1.18868686,842.21,841.18,1.19011419]
[1766687678335,1.18868686,842.2,841.18,1.19011419]
[1766687678533,1.18868686,842.19,841.18,1.19011419]
[1766687678732,1.18868686,842.18,841.18,1.19011419]
[1766687678932,1.18868686,842.17,841.18,1.19011419]
[1766687679234,1.18868686,842.16,841.17,1.19011419]
[1766687679435,1.18868686,842.15,841.17,1.19011419]
[1766687679631,1.18868686,842.14,841.17,1.19011419]
[1766687679835,1.18868686,842.13,841.17,1.19011419]
[1766687680036,1.18868686,842.12,841.17,1.19011419]
[1766687680331,1.18868686,842.11,841.15,1.19011419]
[1766687680535,1.18868686,842.1,841.15,1.19011419]
[1766687680736,1.18868686,842.09,841.15,1.19011419]
[1766687680932,1.18868686,842.08,841.15,1.19011419]
[1766687681136,1.18868686,842.07,841.15,1.19011419]
[1766687681337,0.89130662,842.22,841.15,1.19011419]
[1766687681636,1.18870906,842.21,841.15,1.19011419]
[1766687681835,1.18870906,842.2,841.15,1.19011419]
[1766687682036,1.18870906,842.19,841.15,1.19011419]
[1766687682233,1.18870906,842.18,841.15,1.19011419]
[1766687682434,1.18870906,842.17,841.15,1.19011419]
[1766687682637,1.18870906,842.16,841.15,1.19011419]
[1766687682835,1.18870906,842.15,841.15,1.19011419]
[1766687683038,1.18870906,842.14,841.15,1.19011419]
[1766687683237,1.18870906,842.13,841.15,1.19011419]
[1766687683440,1.18870906,842.12,841.09,1.19011419]
[1766687683735,1.18870906,842.11,841.09,1.19011419]
[1766687683936,1.18870906,842.1,841.09,1.19011419]
[1766687684140,1.18870906,842.09,841.09,1.19011419]
[1766687684341,1.18870906,842.08,841.09,1.19011419]
[1766687684541,1.18870906,842.07,841.09,1.19011419]
[1766687684742,1.18870906,842.06,841.09,1.19011419]
[1766687684937,1.18870906,842.05,841.09,1.19011419]
[1766687685140,1.18870906,842.04,841.09,1.19011419]
[1766687685340,1.18870906,842.03,841.08,1.19011419]
[1766687685542,0.89130662,842.18,841.08,1.19011419]
[1766687685740,1.18878938,842.17,841.08,1.19011419]
[1766687686045,1.18878938,842.16,841.08,1.19011419]
[1766687686242,1.18878938,842.15,841.08,1.19011419]
[1766687686443,1.18878938,842.14,841.08,1.19011419]
[1766687686640,1.18878938,842.13,841.08,1.19011419]
[1766687686942,1.18878938,842.12,841.08,1.19011419]
[1766687687145,1.18878938,842.11,841.06,1.19011419]
[1766687687445,1.18878938,842.1,841.06,1.19011419]
[1766687687645,1.18878938,842.09,841.06,1.19011419]
[1766687687846,1.18878938,842.08,841.06,1.19011419]
[1766687688141,1.18878938,842.07,841.06,1.19011419]
[1766687688445,1.18878938,842.06,841.05,1.19011419]
[1766687688640,1.18878938,842.05,841.05,1.19011419]
[1766687688839,1.18878938,842.04,841.05,1.19011419]
[1766687689042,1.18878938,842.03,841.05,1.19011419]
[1766687689342,1.18878938,842.02,841.02,1.19011419]
[1766687689641,1.18878938,842.01,841.02,1.19011419]
[1766687689841,1.18878938,842.0,841.02,1.19011419]
[1766687690042,1.18878938,841.99,841.02,1.19011419]
[1766687690341,0.88792766,842.14,841.02,1.19011419]
[1766687690544,1.18886113,842.13,841.02,1.19011419]
[1766687690742,1.18886113,842.12,841.02,1.19011419]
[1766687690946,1.18886113,842.11,841.02,1.19011419]
[1766687691146,1.18886113,842.1,841.02,1.19011419]
[1766687691347,1.18886113,842.09,841.02,1.19011419]
[1766687691643,1.18886113,842.08,841.02,1.19011419]
[1766687691946,1.18886113,842.07,841.02,1.19011419]
[1766687692142,0.88792766,842.14,841.02,1.19011419]
[1766687692143,1.18886113,842.06,841.02,1.19011419]
[1766687692342,1.18886113,842.05,841.01,1.19011419]
[1766687692642,1.18886113,842.04,841.01,1.19011419]
[1766687692841,1.18886113,842.03,841.01,1.19011419]
[1766687693045,1.18886113,842.02,841.01,1.19011419]
[1766687693243,1.18886113,842.01,841.01,1.19011419]
[1766687693448,1.18886113,842.0,841.01,1.19011419]
[1766687693652,0.88792766,842.15,841.01,1.19011419]
[1766687693843,1.18886144,842.14,841.01,1.19011419]
[1766687694042,1.18886144,842.13,841.01,1.19011419]
[1766687694246,1.18886144,842.12,841.01,1.19011419]
[1766687694448,1.18886144,842.11,841.01,1.19011419]
[1766687694744,1.18886144,842.1,841.01,1.19011419]
[1766687694947,1.18886144,842.09,841.01,1.19011419]
[1766687695151,1.18886144,842.08,841.01,1.19011419]
[1766687695345,1.18886144,842.07,841.01,1.19011419]
[1766687695647,1.18886144,842.06,841.01,1.19011419]
[1766687695846,1.18886144,842.05,841.01,1.19011419]
[1766687696044,1.18886144,842.04,841.01,1.19011419]
[1766687696346,1.18886144,842.03,841.01,1.19011419]
[1766687696647,0.20666617,842.34,840.91,1.19011419]
[1766687696648,1.18886144,842.02,840.91,1.19011419]
[1766687696848,1.18886144,842.01,840.91,1.19011419]
[1766687697145,1.18886144,842.0,840.91,1.19011419]
[1766687697350,1.18886144,841.99,840.9,1.19011419]
[1766687697551,1.18886144,841.98,840.9,1.19011419]
[1766687697745,1.18886144,841.97,840.9,1.19011419]
[1766687697945,1.18886144,841.96,840.9,1.19011419]
[1766687698150,1.18886144,841.95,840.9,1.19011419]
[1766687698350,1.18886144,841.94,840.9,1.19011419]
[1766687698546,1.18886144,841.93,840.9,1.19011419]
[1766687698849,1.18886144,841.92,840.9,1.19011419]
[1766687699050,1.18886144,841.91,840.9,1.19011419]
[1766687699246,1.18886144,841.9,840.9,1.19011419]
[1766687699448,0.88792766,842.05,840.9,1.19011419]
[1766687699651,1.18900735,842.04,840.9,1.19011419]
[1766687699852,1.18900735,842.03,840.9,1.19011419]
[1766687700051,1.18900735,842.02,840.9,1.19011419]
[1766687700250,1.18900735,842.01,840.9,1.19011419]
[1766687700451,1.18900735,842.0,840.9,1.19011419]
[1766687700648,1.18900735,841.99,840.9,1.19011419]
[1766687700846,1.18900735,841.98,840.9,1.19011419]
[1766687701048,1.18900735,841.97,840.9,1.19011419]
[1766687701255,1.18900735,841.96,840.9,1.19011419]
[1766687701552,1.18900735,841.95,840.9,1.19011419]
[1766687701757,1.18900735,841.94,840.9,1.19011419]
[1766687701952,1.18900735,841.93,840.9,1.19011419]
[1766687702150,1.18900735,841.92,840.9,1.19011419]
[1766687702451,0.88792766,842.05,840.9,1.19011419]
[1766687702452,1.18900735,841.91,840.9,1.19011419]
[1766687702653,1.18900735,841.9,840.9,1.19011419]
[1766687702853,0.88792766,842.05,840.9,1.19011419]
[1766687703052,1.18900704,842.04,840.9,1.19011419]
[1766687703253,1.18900704,842.03,840.9,1.19011419]
[1766687703453,1.18900704,842.02,840.9,1.19011419]
[1766687703652,1.18900704,842.01,840.9,1.19011419]
[1766687703854,1.18900704,842.0,840.9,1.19011419]
[1766687704056,1.18900704,841.99,840.9,1.19011419]
[1766687704254,1.18900704,841.98,840.9,1.19011419]
[1766687704554,1.18900704,841.97,840.91,1.19011419]
[1766687704859,1.18900704,841.96,840.91,1.19011419]
[1766687705158,1.18900704,841.95,840.91,1.19011419]
[1766687705458,1.18900704,841.94,840.91,10.03876012]
[1766687705656,1.18900704,841.93,840.91,10.03876012]
[1766687705858,1.18900704,841.92,840.91,10.03876012]
[1766687706060,1.18900704,841.91,840.91,10.03876012]
[1766687706261,1.18900704,841.9,840.91,10.03876012]
[1766687706560,1.18900704,841.89,840.91,10.03876012]
[1766687706759,0.88792766,842.04,840.91,10.03876012]
[1766687706957,1.18900714,842.03,840.91,10.03876012]
[1766687707157,1.18900714,842.02,840.91,10.03876012]
[1766687707357,1.18900714,842.01,840.91,10.03876012]
[1766687707557,1.18900714,842.0,840.92,1.19011419]
[1766687707862,1.18900714,841.99,840.92,1.19011419]
[1766687708065,1.18900714,841.98,840.92,1.19011419]
[1766687708263,1.18900714,841.97,840.92,1.19011419]
[1766687708462,1.18900714,841.96,840.93,1.19011419]
[1766687708762,1.18900714,841.95,840.93,1.19011419]
[1766687708963,1.18900714,841.94,840.93,1.19011419]
[1766687709164,1.18900714,841.93,840.93,1.19011419]
[1766687709363,1.18900714,841.92,840.93,1.19011419]
[1766687709562,1.18900714,841.91,840.93,1.19011419]
[1766687709762,1.18900714,841.9,840.93,1.19011419]
[1766687709959,1.18900714,841.89,840.93,1.19011419]
[1766687710261,1.18900714,841.88,840.93,1.19011419]
[1766687710464,1.18900714,841.87,840.93,1.19011419]
[1766687710664,0.88792766,842.02,840.93,1.19011419]
[1766687710867,1.18900714,842.01,840.93,1.19011419]
[1766687711165,1.18900714,842.0,840.93,1.19011419]
[1766687711366,1.18900714,841.99,840.94,1.19011419]
[1766687711565,1.18900714,841.98,840.94,1.19011419]
[1766687711765,1.18900714,841.97,840.94,1.19011419]
[1766687711965,1.18900714,841.96,840.94,1.19011419]
[1766687712164,1.18900714,841.95,840.94,1.19011419]
[1766687712366,1.18900714,841.94,840.94,1.19011419]
[1766687712566,1.18900714,841.93,840.94,1.19011419]
[1766687712862,1.18900714,841.92,840.94,1.19011419]
[1766687713066,1.18900714,841.91,840.94,1.19011419]
[1766687713364,1.18900714,841.9,840.94,1.19011419]
[1766687713566,1.18900714,841.89,840.94,1.19011419]
[1766687713766,1.18900714,841.88,840.94,1.19011419]
[1766687713962,1.18900714,841.87,840.94,1.19011419]
[1766687714163,0.88792766,842.01,840.94,1.19011419]
[1766687714362,1.18900714,842.0,840.94,1.19011419]
[1766687714562,1.18900714,841.99,840.94,1.19011419]
[1766687714860,1.18900714,841.98,840.94,1.19011419]
[1766687715064,1.18900714,841.97,840.94,1.19011419]
[1766687715262,1.18900714,841.96,840.94,1.19011419]
[1766687715467,1.18900714,841.95,840.94,1.19011419]
[1766687715763,1.18900714,841.94,840.94,1.19011419]
[1766687716066,1.18900714,841.93,840.94,1.19011419]
[1766687716267,1.18900714,841.92,840.94,1.19011419]
[1766687716562,0.88792766,842.01,840.94,1.19011419]
[1766687716563,1.18900714,841.91,840.94,1.19011419]
[1766687716767,1.18900714,841.9,840.94,1.19011419]
[1766687716966,1.18900714,841.89,840.94,1.19011419]
[1766687717166,1.18900714,841.88,840.94,1.19011419]
[1766687717367,1.18900714,841.87,840.94,1.19011419]
[1766687717567,1.18900714,841.86,840.94,1.19011419]
[1766687717764,1.18900714,841.85,840.91,1.19011419]
[1766687717967,1.18900714,841.84,840.91,1.19011419]
[1766687718168,1.18904573,841.83,840.91,1.19011419]
[1766687718369,0.88792766,841.98,840.91,1.19011419]
[1766687718569,1.18904573,841.97,840.91,1.19011419]
[1766687718865,1.18904573,841.96,840.91,1.19011419]
[1766687719168,1.18904573,841.95,840.91,1.19011419]
[1766687719364,1.18904573,841.94,840.92,1.19011419]
[1766687719567,1.18904573,841.93,840.92,1.19011419]
[1766687719767,1.18904573,841.92,840.92,1.19011419]
[1766687719967,1.18904573,841.91,840.92,1.19011419]
[1766687720170,1.18904573,841.9,840.92,1.19011419]
[1766687720367,1.18904573,841.89,840.92,1.19011419]
[1766687720670,1.18904573,841.88,840.9,1.19011419]
[1766687720871,1.18904573,841.87,840.9,1.19011419]
[1766687721070,1.18904573,841.86,840.9,1.19011419]
[1766687721267,1.18904573,841.85,840.9,1.19011419]
[1766687721468,1.18904573,841.84,840.9,1.19011419]
[1766687721673,1.18904573,841.83,840.9,1.19011419]
[1766687721874,1.18904573,841.82,840.87,1.19011419]
[1766687722077,1.18904573,841.81,840.86,1.19011419]
[1766687722375,1.18904573,841.8,840.86,1.19011419]
[1766687722569,1.18904573,841.79,840.86,1.19011419]
[1766687722769,1.18904573,841.78,840.86,1.19011419]
[1766687723070,1.18904573,841.77,840.86,1.19011419]
[1766687723273,1.18904573,841.76,840.86,1.19011419]
[1766687723473,0.88792766,841.91,840.86,1.19011419]
[1766687723671,1.1891356,841.9,840.86,1.19011419]
[1766687723968,1.1891356,841.89,840.86,1.19011419]
[1766687724170,1.1891356,841.88,840.86,1.19011419]
[1766687724371,1.1891356,841.87,840.86,1.19011419]
[1766687724571,1.1891356,841.86,840.86,1.19011419]
[1766687724772,1.1891356,841.85,840.86,1.19011419]
[1766687725075,1.1891356,841.84,840.86,1.19011419]
[1766687725377,1.1891356,841.83,840.86,1.19011419]
[1766687725573,1.1891356,841.82,840.86,1.19011419]
[1766687725777,1.1891356,841.81,840.86,1.19011419]
[1766687726077,1.1891356,841.8,840.86,1.19011419]
[1766687726278,1.1891356,841.79,840.85,1.19011419]
[1766687726478,1.1891356,841.78,840.86,1.19011419]
[1766687726774,1.1891356,841.77,840.86,1.19011419]
[1766687726976,1.1891356,841.76,840.8,1.19011419]
[1766687727174,1.1891356,841.75,840.8,1.19011419]
[1766687727377,1.1891356,841.74,840.8,1.19011419]
[1766687727576,1.1891356,841.73,840.8,1.19011419]
[1766687727778,1.1891356,841.72,840.8,1.19011419]
[1766687727977,1.1891356,841.71,840.8,1.19011419]
[1766687728177,1.1891356,841.7,840.8,1.19011419]
[1766687728378,1.1891356,841.69,840.8,1.19011419]
[1766687728578,0.88792766,841.84,840.8,1.19011419]
[1766687728777,1.18922815,841.83,840.8,1.19011419]
[1766687728978,1.18922815,841.82,840.8,1.19011419]
[1766687729178,1.18922815,841.81,840.8,1.19011419]
[1766687729379,1.18922815,841.8,840.8,1.19011419]
[1766687729580,1.18922815,841.79,840.8,1.19011419]
[1766687729779,1.18922815,841.78,840.8,1.19011419]
[1766687729980,1.18922815,841.77,840.8,1.19011419]
[1766687730180,1.18922815,841.76,840.8,1.19011419]
[1766687730481,1.18922815,841.75,840.79,1.19011419]
[1766687730683,1.18922815,841.74,840.79,1.19011419]
[1766687730882,1.18922815,841.73,840.8,1.19011419]
[1766687731180,1.18922815,841.72,840.8,1.19011419]
[1766687731378,1.18922815,841.71,840.8,1.19011419]
[1766687731584,1.18922815,841.7,840.8,1.19011419]
[1766687731880,1.18922815,841.69,840.8,1.19011419]
[1766687732180,0.88792766,841.84,840.8,10.22644451]
[1766687732382,1.1892268,841.83,840.8,10.22644451]
[1766687732585,1.1892268,841.82,840.8,10.22644451]
[1766687732782,1.1892268,841.81,840.8,10.22644451]
[1766687732984,1.1892268,841.8,840.8,10.22644451]
[1766687733183,1.1892268,841.79,840.8,10.22644451]
[1766687733478,1.1892268,841.78,840.8,10.22644451]
[1766687733686,1.1892268,841.77,840.8,10.22644451]
[1766687733880,1.1892268,841.76,840.8,10.22644451]
[1766687734082,1.1892268,841.75,840.8,10.22644451]
[1766687734281,1.1892268,841.74,840.8,10.22644451]
[1766687734484,1.1892268,841.83,840.8,10.22644451]
[1766687734784,1.1892268,841.82,840.8,10.22644451]
[1766687734984,1.1892268,841.81,840.8,10.22644451]
[1766687735184,1.1892268,841.8,840.8,10.22644451]
[1766687735385,1.1892268,841.79,840.8,10.22644451]
[1766687735681,1.1892268,841.78,840.8,10.22644451]
[1766687735880,1.1892268,841.77,840.8,1.19011419]
[1766687736179,1.1892268,841.76,840.8,1.19011419]
[1766687736387,1.1892268,841.75,840.8,1.19011419]
[1766687736582,1.1892268,841.74,840.8,1.19011419]
[1766687736780,1.1892268,841.73,840.8,1.19011419]
[1766687736985,1.1892268,841.72,840.8,1.19011419]
[1766687737182,1.1892268,841.83,840.8,1.19011419]
[1766687737381,1.1892268,841.82,840.8,1.19011419]
[1766687737585,1.1892268,841.81,840.8,1.19011419]
[1766687737787,1.1892268,841.8,840.8,1.19011419]
[1766687737981,1.1892268,841.79,840.8,1.19011419]
[1766687738280,1.1892268,841.78,840.8,1.19011419]
[1766687738486,1.1892268,841.77,840.8,1.19011419]
[1766687738681,0.88792766,841.83,840.8,1.19011419]
[1766687738682,1.1892268,841.76,840.8,1.19011419]
[1766687738885,1.1892268,841.75,840.8,1.19011419]
[1766687739083,1.1892268,841.74,840.8,1.19011419]
[1766687739381,1.1892268,841.73,840.8,1.19011419]
[1766687739586,1.1892268,841.72,840.8,1.19011419]
[1766687739882,1.1892268,841.71,840.8,1.19011419]
[1766687740083,1.1892268,841.7,840.8,1.19011419]
[1766687740383,1.1892268,841.69,840.8,1.19011419]
[1766687740584,1.1892268,841.68,840.8,1.19011419]
[1766687740784,0.88792766,841.83,840.8,1.19011419]
[1766687740983,1.1892268,841.82,840.8,1.19011419]
[1766687741189,1.1892268,841.81,840.8,1.19011419]
[1766687741388,1.1892268,841.8,840.81,1.19011419]
[1766687741585,1.1892268,841.79,840.81,1.19011419]
[1766687741785,1.1892268,841.78,840.81,1.19011419]
[1766687741989,1.1892268,841.77,840.81,10.24187482]
[1766687742185,1.1892268,841.76,840.81,10.24187482]
[1766687742384,1.1892268,841.75,840.81,10.24187482]
[1766687742590,1.1892268,841.74,840.81,10.24187482]
[1766687742890,1.1892268,841.73,840.81,10.24187482]
[1766687743089,0.88792766,841.82,840.81,10.24187482]
[1766687743292,1.18922711,841.81,840.81,10.24187482]
[1766687743492,1.18922711,841.8,840.81,10.24187482]
[1766687743792,1.18922711,841.79,840.82,1.19011419]
[1766687743995,0.88792766,841.84,840.82,1.19011419]
[1766687743996,1.18922711,841.78,840.82,1.19011419]
[1766687744294,1.18922711,841.77,840.82,1.19011419]
[1766687744593,1.18922711,841.76,840.82,1.19011419]
[1766687744893,1.18922711,841.75,840.82,1.19011419]
[1766687745088,1.18922711,841.74,840.82,1.19011419]
[1766687745288,1.18922711,841.73,840.82,1.19011419]
[1766687745492,1.18922711,841.72,840.82,1.19011419]
[1766687745793,1.18922711,841.71,840.82,1.19011419]
[1766687746087,1.18922711,841.7,840.82,1.19011419]
[1766687746298,1.18922711,841.69,840.82,1.19011419]
[1766687746494,0.88792766,841.84,840.83,1.19011419]
[1766687746695,1.1892046,841.83,840.83,1.19011419]
[1766687746994,1.1892046,841.82,840.83,1.19011419]
[1766687747289,1.1892046,841.81,840.83,1.19011419]
[1766687747489,1.1892046,841.8,840.83,1.19011419]
[1766687747693,1.1892046,841.79,840.83,1.19011419]
[1766687747893,1.1892046,841.78,840.83,1.19011419]
[1766687748095,1.1892046,841.77,840.83,1.19011419]
[1766687748394,1.1892046,841.76,840.83,1.19011419]
[1766687748594,1.1892046,841.75,840.83,1.19011419]
[1766687748897,1.1892046,841.74,840.83,1.19011419]
[1766687749093,1.1892046,841.73,840.83,1.19011419]
[1766687749393,1.1892046,841.72,840.83,1.19011419]
[1766687749589,1.1892046,841.71,840.83,1.19011419]
[1766687749795,0.88792766,841.84,840.83,1.19011419]
[1766687749796,1.1892046,841.7,840.83,1.19011419]
[1766687749994,0.88792766,841.9,840.89,1.19011419]
[1766687750194,1.18900076,841.89,840.97,1.19011419]
[1766687750390,0.88792766,841.98,840.97,1.19011419]
[1766687750391,1.18900076,841.88,840.97,1.19011419]
[1766687750592,1.18900076,841.87,840.97,1.19011419]
[1766687750792,1.18900076,841.86,840.97,1.19011419]
[1766687750994,1.18900076,841.85,840.97,1.19011419]
[1766687751191,1.18900076,841.84,840.97,1.19011419]
[1766687751391,1.18900076,841.83,840.97,1.19011419]
[1766687751695,0.88792766,841.98,840.97,1.19011419]
[1766687751894,1.18900118,841.97,840.97,1.19011419]
[1766687752092,1.18900118,841.96,840.97,1.19011419]
[1766687752296,1.18900118,841.95,840.97,1.19011419]
[1766687752491,1.18900118,841.94,840.97,1.19011419]
[1766687752694,1.18900118,841.93,840.97,1.19011419]
[1766687752995,1.18900118,841.92,840.97,1.19011419]
[1766687753196,1.18900118,841.91,840.97,1.19011419]
[1766687753393,1.18900118,841.9,840.97,1.19011419]
[1766687753593,1.18900118,841.89,840.97,1.19011419]
[1766687753796,1.18900118,841.88,840.97,1.19011419]
[1766687754096,1.18900118,841.87,840.97,1.19011419]
[1766687754296,1.18900118,841.86,840.97,1.19011419]
[1766687754498,1.18900118,841.85,840.98,1.19011419]
[1766687754696,1.18900118,841.84,840.98,1.19011419]
[1766687754999,1.18900118,841.83,840.98,10.22585936]
[1766687755198,0.88792766,841.99,840.98,10.22585936]
[1766687755498,1.18900128,841.98,840.98,10.22585936]
[1766687755697,1.18900128,841.97,840.99,1.19011419]
[1766687755895,1.18900128,841.96,840.99,1.19011419]
[1766687756093,1.18900128,841.95,840.99,1.19011419]
[1766687756394,1.18900128,841.94,840.99,1.19011419]
[1766687756594,1.18900128,841.93,840.99,1.19011419]
[1766687756900,1.18900128,841.92,841.0,1.19011419]
[1766687757094,1.18900128,841.91,841.0,1.19011419]
[1766687757296,1.18900128,841.9,841.0,1.19011419]
[1766687757597,1.18900128,841.89,841.0,1.19011419]
[1766687757799,1.18900128,841.88,841.0,1.19011419]
[1766687758000,1.18900128,841.87,841.0,1.19011419]
[1766687758197,1.18900128,841.86,841.0,1.19011419]
[1766687758398,0.88792766,842.01,841.0,1.19011419]
[1766687758601,1.18897566,842.0,841.0,1.19011419]
[1766687758800,1.18897566,841.99,841.0,1.19011419]
[1766687759000,1.18897566,841.98,841.0,1.19011419]
[1766687759201,1.18897566,841.97,841.0,1.19011419]
[1766687759402,1.18897566,841.96,841.0,1.19011419]
[1766687759600,1.18897566,841.95,841.0,1.19011419]
[1766687759801,1.18897566,841.94,841.0,1.19011419]
[1766687760000,1.18897576,841.93,841.0,1.19011419]
[1766687760198,1.18897576,841.92,841.0,1.19011419]
[1766687760401,1.18897576,841.91,841.0,1.19011419]
[1766687760599,1.18897576,841.9,841.0,1.19011419]
[1766687760798,1.18897576,841.89,841.0,1.19011419]
[1766687760998,1.18897576,841.88,841.0,1.19011419]
[1766687761200,1.18897576,841.87,841.0,1.19011419]
[1766687761398,1.18897576,841.86,841.0,1.19011419]
[1766687761601,0.88792766,842.01,841.0,1.19011419]
[1766687761801,1.18897566,842.0,841.0,1.19011419]
[1766687762004,1.18897566,841.99,841.0,1.19011419]
[1766687762201,1.18897566,841.98,841.0,1.19011419]
[1766687762499,1.18897566,841.97,841.0,1.19011419]
[1766687762701,1.18897566,841.96,841.0,1.19011419]
[1766687762901,1.18897566,841.95,841.0,1.19011419]
[1766687763102,1.18897566,841.94,841.0,1.19011419]
[1766687763305,1.18897566,841.93,840.99,1.19011419]
[1766687763509,1.18897566,841.92,840.99,1.19011419]
[1766687763804,1.18897566,841.91,840.99,1.19011419]
[1766687764107,1.18897566,841.9,840.99,1.19011419]
[1766687764305,1.18897566,841.89,840.99,1.19011419]
[1766687764508,1.18897566,841.88,840.99,1.19011419]
[1766687764709,1.18897566,841.87,840.99,1.19011419]
[1766687764908,1.18897566,841.86,840.99,1.19011419]
[1766687765210,0.20673677,841.96,840.99,1.19011419]
[1766687765408,1.18897628,841.95,840.99,1.19011419]
[1766687765613,1.18897628,841.94,840.99,1.19011419]
[1766687765908,1.18897628,841.93,840.99,1.19011419]
[1766687766208,1.18897628,841.92,840.99,1.19011419]
[1766687766407,1.18897628,841.91,840.99,1.19011419]
[1766687766612,1.18897628,841.9,840.99,1.19011419]
[1766687766912,1.18897628,841.89,840.99,1.19011419]
[1766687767111,1.18897628,841.88,840.99,1.19011419]
[1766687767311,1.18897628,841.87,840.99,1.19011419]
[1766687767506,1.18899147,841.86,840.98,1.19011419]
[1766687767711,0.20673677,841.96,840.98,1.19011419]
[1766687768012,1.18899147,841.95,840.98,1.19011419]
[1766687768212,1.18899147,841.94,840.98,1.19011419]
[1766687768411,1.18899147,841.93,840.97,1.19011419]
[1766687768709,1.18899147,841.92,840.97,1.19011419]
[1766687768907,1.18899147,841.91,840.97,1.19011419]
[1766687769113,1.18899147,841.9,840.97,1.19011419]
[1766687769407,1.18899147,841.89,840.97,1.19011419]
[1766687769610,1.18899147,841.88,840.97,1.19011419]
[1766687769807,1.18899147,841.87,840.97,1.19011419]
[1766687770111,1.18899147,841.86,840.97,1.19011419]
[1766687770311,0.20673677,841.96,840.97,1.19011419]
[1766687770507,1.18899106,841.95,840.97,1.19011419]
[1766687770709,0.20673677,841.96,840.97,1.19011419]
[1766687770710,1.18899106,841.94,840.97,1.19011419]
[1766687770910,1.18899106,841.93,840.97,1.19011419]
[1766687771108,1.18899106,841.92,840.97,1.19011419]
[1766687771311,1.18899106,841.91,840.97,1.19011419]
[1766687771509,1.18899106,841.9,840.97,1.19011419]
[1766687771708,1.18899106,841.89,840.97,1.19011419]
[1766687771908,1.18899106,841.88,840.97,1.19011419]
[1766687772113,1.18899106,841.87,840.97,1.19011419]
[1766687772309,1.18899106,841.86,840.97,1.19011419]
[1766687772515,0.20673677,841.96,840.97,1.19011419]